Cogmind - Beta 14 @@@ ROGUE MODE // 2024.08.21 @ 00:31:25 Player: APerTAS Result: Destroyed by G-50 Soldier with Heavy Laser Performance ------------- Evolutions (2) 1000 Regions Visited (6) 1200 Robots Destroyed (11) 55 Value Destroyed (420) 420 Prototype IDs (24) 480 Alien Tech Used (0) 0 Bonus (570) 570 TOTAL SCORE: 3725 Bonus ------- Pacifist 270 Aligned with FarCom 300 Cogmind --------- Core Integrity 0/550 Matter 300/300 Energy 100/100 System Corruption 0% Temperature Cool (9) Movement Rolling (90) Location -8/Storage Parts ------- > --- POWER (1) -------- (None) > --- PROPULSION (2) --- Armored Wheel Armored Wheel > --- UTILITY (4) ------ (None) > --- WEAPON (4) ------- Shock Maul > --- INVENTORY (5) ---- (None) Peak State ------------ > --- POWER ------------ (None) > --- PROPULSION ------- Airjet > --- UTILITY ---------- (None) > --- WEAPON ----------- Heavy Assault Rifle Longsword +1 > --- INVENTORY -------- (None) [Rating: 13] Favorites ----------- Power None Propulsion Armored Wheel Wheel Armored Wheel Hover Unit Airjet Utility Improved Sensor Array Device Improved Sensor Array Weapon Longsword +1 Ballistic Gun Heavy Assault Rifle Impact Weapon Shock Maul Slashing Weapon Longsword +1 Build | -11 -10 -10 -10 -9 -8 -8 ------- Run | Yrd Mat Min Exi Min Mat Sto Slots Evolved 4 | . . . . . 4 . Power . | . . . . . . . Propulsion . | . . . . . . . Utility 2 | . . . . . 2 . Weapon 2 | . . . . . 2 . Parts Attached 7 | . . . 1 . 2 4 Power . | . . . . . . . Engine . | . . . . . . . Core . | . . . . . . . Reactor . | . . . . . . . Propulsion 3 | . . . . . 1 2 Treads . | . . . . . . . Leg . | . . . . . . . Wheel 2 | . . . . . . 2 Hover 1 | . . . . . 1 . Flight . | . . . . . . . Utility 1 | . . . . . . 1 Device 1 | . . . . . . 1 Storage . | . . . . . . . Processor . | . . . . . . . Hackware . | . . . . . . . Protection . | . . . . . . . Artifact . | . . . . . . . Weapon 3 | . . . 1 . 1 1 Energy Gun . | . . . . . . . Energy Cannon . | . . . . . . . Ballistic Gun 1 | . . . . . 1 . Ballistic Cannon . | . . . . . . . Launcher . | . . . . . . . Special Weapon . | . . . . . . . Impact Weapon 1 | . . . . . . 1 Slashing Weapon 1 | . . . 1 . . . Piercing Weapon . | . . . . . . . Special Melee Weapon . | . . . . . . . Unidentified Prototypes 1 | . . . . . . 1 Parts Lost . | . . . . . . . Power . | . . . . . . . Propulsion . | . . . . . . . Utility . | . . . . . . . Weapon . | . . . . . . . Highest Loss Streak . | . . . . . . . To Critical Strikes . | . . . . . . . Average Slot Usage (%) 11 | . . . 7 14 16 15 Wheel 2 | . . . . . . 7 Ballistic Gun 2 | . . . . . 7 . Impact Weapon 1 | . . . . . . 6 Slashing Weapon 4 | . . . 7 14 7 . Peak Build Rating 13 | . . . 8 8 13 10 Average Rating 5 | . . . 3 8 8 6 On Entrance 2 | . . . . 8 8 . Naked Turns 252 | . 55 45 66 . 43 43 Heaviest Build 6 | . . . 3 3 6 3 Greatest Support 24 | 3 3 3 3 3 8 24 Greatest Overweight (x) 1 | . . . . . 1 . Average Overweight (x) . | . . . . . . . Largest Inventory Capacity 5 | 5 5 5 5 5 5 5 Average Capacity 5 | 5 5 5 5 5 5 5 Most Carried 1 | . . . 1 . . . Average Carried . | . . . . . . . Final Capacity 5 | 5 5 5 5 5 5 5 Final Carried 1 | . . . 1 . . . Class Distribution -------------------- 100% | Mutant Dominant Class ---------------- Mutant | -10/Materials Mutant | -10/Mines Mutant | -10/Exiles Mutant | -9/Mines Mutant | -8/Materials Mutant | -8/Storage Resources | -11 -10 -10 -10 -9 -8 -8 ----------- Run | Yrd Mat Min Exi Min Mat Sto Matter Collected 140 | 43 50 . . . 17 30 Remotely . | . . . . . . . Salvage Created 420 | . . . . . 282 138 Parts 16 | . . . . . 12 4 Haulers Intercepted . | . . . . . . . Recyclers Shooed . | . . . . . . . Parts Field Recycled . | . . . . . . . Retrieved Matter . | . . . . . . . Parts Self-Destructed . | . . . . . . . Prevented . | . . . . . . . Kills | -11 -10 -10 -10 -9 -8 -8 ------- Run | Yrd Mat Min Exi Min Mat Sto Combat Hostiles Destroyed 10 | . . . . . 5 5 Melee 5 | . . . . . 5 . Classes Destroyed 4 | . . . . . 2 2 Builder 1 | . . . . . 1 . Swarmer 3 | . . . . . . 3 Grunt 5 | . . . . . 5 . Sentry 2 | . . . . . . 2 Best Kill Streak 5 | . . . . . 5 4 Combat Bots Only 5 | . . . . . 5 4 Max Kills in Single Turn 1 | . . . . . 1 1 Gunslinging . | . . . . . . . Exploded . | . . . . . . . Melee 1 | . . . . . 1 . Uniques/NPCs Destroyed . | . . . . . . . Combat | -11 -10 -10 -10 -9 -8 -8 -------- Run | Yrd Mat Min Exi Min Mat Sto Hostile Shots Fired 140 | . 16 7 . . 23 94 Missed 47 | . 5 2 . . 11 29 Damage Taken 1155 | 9 171 50 . . 196 729 Core 792 | 9 171 50 . . 88 474 Absorbed by Shields . | . . . . . . . Core Remaining (%) 52 | 96 . . . 8 . . Volleys Fired . | . . . . . . . Largest . | . . . . . . . Hottest . | . . . . . . . Shots Fired . | . . . . . . . Gun . | . . . . . . . Cannon . | . . . . . . . Launcher . | . . . . . . . Special . | . . . . . . . Kinetic . | . . . . . . . Thermal . | . . . . . . . Explosive . | . . . . . . . Electromagnetic . | . . . . . . . Robot Hit Streak . | . . . . . . . Robot Miss Streak . | . . . . . . . Penetration Max . | . . . . . . . Secondary Targets . | . . . . . . . Shots Hit Robots 21 | . . . . . 12 9 Core Hits 9 | . 2 . . . 6 1 Critical Kills . | . . . . . . . Critical Parts Destroyed 2 | . . . . . . 2 Critical Strikes 6 | . . . . . 3 3 Smash 3 | . . . . . . 3 Sever 3 | . . . . . 3 . Melee Attacks 26 | . . . . . 12 14 Impact 14 | . . . . . . 14 Slashing 12 | . . . . . 12 . Piercing . | . . . . . . . Sneak Attacks . | . . . . . . . Combat Hostiles . | . . . . . . . Follow-up Attacks . | . . . . . . . Damage Inflicted 1163 | 19 42 24 . . 587 491 Guns . | . . . . . . . Cannons . | . . . . . . . Explosions . | . . . . . . . Melee 1015 | . . . . . 563 452 Ramming 148 | 19 42 24 . . 24 39 Kinetic . | . . . . . . . Thermal . | . . . . . . . Explosive . | . . . . . . . Electromagnetic . | . . . . . . . Impact 452 | . . . . . . 452 Slashing 563 | . . . . . 563 . Piercing . | . . . . . . . Highest Corruption 1 | . 1 1 1 1 . . Average Corruption 1 | . 1 1 1 1 . . Corruption Purged . | . . . . . . . Corruption Blocked . | . . . . . . . Effects 1 | . . . 1 . . . Alerts 1 | . . . 1 . . . Overload Shots . | . . . . . . . Overflow Damage 185 | . . . . . 5 180 Projectiles . | . . . . . . . Explosions . | . . . . . . . Melee 185 | . . . . . 5 180 Knockbacks 3 | . 1 . . . . 2 Impact 3 | . 1 . . . . 2 Kinetic . | . . . . . . . Secondary . | . . . . . . . Self-Inflicted Damage 67 | 9 17 11 . . 12 18 Shots . | . . . . . . . Rammed 37 | 4 10 7 . . 3 13 Targets Rammed 37 | 4 10 7 . . 3 13 Kicked . | . . . . . . . Crushed . | . . . . . . . Highest Temperature . | . . . . . . . Average Temperature . | . . . . . . . Received Heat Transfer 348 | . 87 . . . 99 162 Siege Activations . | . . . . . . . Robots Corrupted 5 | . . . . . . 5 Combat Hostiles 5 | . . . . . . 5 Parts Fried 6 | . . . . . . 6 Impact Corruptions 10 | . . . . . . 10 Robots Melted . | . . . . . . . Combat Hostiles . | . . . . . . . Parts Melted . | . . . . . . . Heat Transferred . | . . . . . . . Parts Sabotaged . | . . . . . . . Parts Stolen . | . . . . . . . Parts Stripped . | . . . . . . . Power Chain Reactions . | . . . . . . . Alert | -11 -10 -10 -10 -9 -8 -8 ------- Run | Yrd Mat Min Exi Min Mat Sto Peak Influence 325 | . 30 41 . . 325 303 Initial 137 | . . 11 . . . 137 Average 111 | . 10 17 . . 87 223 Maximum Alert Level 1 | . . . . . 1 1 Low Security (%) 72 | 100 100 100 . 100 77 44 Level 1 27 | . . . . . 22 55 Level 2 . | . . . . . . . Level 3 . | . . . . . . . Level 4 . | . . . . . . . Level 5 . | . . . . . . . High Security . | . . . . . . . Max Security . | . . . . . . . Squads Dispatched 6 | . 1 . . . 4 1 Investigation 3 | . . . . . 3 . Extermination . | . . . . . . . Reinforcement 3 | . 1 . . . 1 1 Assault . | . . . . . . . Garrison . | . . . . . . . Intercept . | . . . . . . . Searches Triggered . | . . . . . . . Construction Impeded . | . . . . . . . Haulers Reinforced . | . . . . . . . Active Scanning Responses . | . . . . . . . Cargo Convoy Interrupts . | . . . . . . . Stealth | -11 -10 -10 -10 -9 -8 -8 --------- Run | Yrd Mat Min Exi Min Mat Sto Distress Signals 5 | . . . . . 4 1 Communications Jammed . | . . . . . . . Distress Signals . | . . . . . . . Times Spotted 33 | . 6 5 . . 12 10 Peak Tracking Total 9 | . 4 5 . . 9 5 Tactical Retreats 3 | . . 1 . . 2 . Traps | -11 -10 -10 -10 -9 -8 -8 ------- Run | Yrd Mat Min Exi Min Mat Sto Traps Triggered 1 | . 1 . . . . . Indirectly . | . . . . . . . Trap Hack Attempts . | . . . . . . . Triggered . | . . . . . . . Disarmed . | . . . . . . . Reprogrammed . | . . . . . . . Reused . | . . . . . . . Traps Extracted . | . . . . . . . Installed . | . . . . . . . Triggered . | . . . . . . . Machines | -11 -10 -10 -10 -9 -8 -8 ---------- Run | Yrd Mat Min Exi Min Mat Sto Machines Disabled . | . . . . . . . Max in Single Turn . | . . . . . . . Machines Repaired . | . . . . . . . Machines Dismantled . | . . . . . . . Machines Sabotaged 1 | . . . . . 1 . Overloaded Fab Kills . | . . . . . . . Hacking | -11 -10 -10 -10 -9 -8 -8 --------- Run | Yrd Mat Min Exi Min Mat Sto Machines Accessed 9 | . . . 2 . 3 4 Terminals 7 | . . . . . 3 4 Fabricators . | . . . . . . . Repair Stations . | . . . . . . . Recycling Units . | . . . . . . . Scanalyzers . | . . . . . . . Garrison Access . | . . . . . . . Total Hacks 14 | . . . 2 . 4 8 Successful 7 | . . . 2 . 2 3 Failed 7 | . . . . . 2 5 Catastrophic 3 | . . . . . . 3 Database Lockouts . | . . . . . . . Manual 6 | . . . 1 . 5 . Terminals 12 | . . . . . 4 8 Fabricators . | . . . . . . . Repair Stations . | . . . . . . . Recycling Units . | . . . . . . . Scanalyzers . | . . . . . . . Garrison Access . | . . . . . . . Terminal Hacks 5 | . . . 2 . . 3 Record 1 | . . . 1 . . . Open Door 3 | . . . . . . 3 Derelict Proto ID Bank 1 | . . . 1 . . . Fabricator Hacks . | . . . . . . . Repair Station Hacks . | . . . . . . . Recycling Unit Hacks . | . . . . . . . Scanalyzer . | . . . . . . . Garrison Access Hacks . | . . . . . . . Unauthorized Hacks 2 | . . . . . 2 . Terminals 2 | . . . . . 2 . Sabotage 2 | . . . . . 2 . Fabricators . | . . . . . . . Repair Stations . | . . . . . . . Recycling Units . | . . . . . . . Scanalyzers . | . . . . . . . Garrison Access . | . . . . . . . Data Cores Recovered . | . . . . . . . Used . | . . . . . . . Hacking Detections 3 | . . . . . 1 2 Full Trace Events 3 | . . . . . 1 2 Feedback Events . | . . . . . . . Feedback Blocked . | . . . . . . . Robot Schematics Acquired . | . . . . . . . Robots Built . | . . . . . . . Authchips . | . . . . . . . Time . | . . . . . . . Total Robot Build Rating . | . . . . . . . Part Schematics Acquired . | . . . . . . . Parts Built . | . . . . . . . Authchips . | . . . . . . . Time . | . . . . . . . Total Part Build Rating . | . . . . . . . Parts Repaired . | . . . . . . . Time . | . . . . . . . Parts Recycled . | . . . . . . . Recycled Matter . | . . . . . . . Retrieved Matter . | . . . . . . . Retrieved Components . | . . . . . . . Parts Scanalyzed . | . . . . . . . Part Schematics Acquired . | . . . . . . . Parts Damaged . | . . . . . . . Bothacking | -11 -10 -10 -10 -9 -8 -8 ------------ Run | Yrd Mat Min Exi Min Mat Sto Used RIF Installer . | . . . . . . . Robots Hacked . | . . . . . . . Non-combat . | . . . . . . . Combat . | . . . . . . . Robot Hacks Applied . | . . . . . . . Relay Couplers Released . | . . . . . . . Fabnet Peak Effective % . | . . . . . . . Robots Rewired . | . . . . . . . Allies Hacked . | . . . . . . . Hacks Repelled . | . . . . . . . Allies | -11 -10 -10 -10 -9 -8 -8 -------- Run | Yrd Mat Min Exi Min Mat Sto Total Allies . | . . . . . . . Largest Group . | . . . . . . . Highest-Rated Group . | . . . . . . . Highest-Rated Ally . | . . . . . . . Total Orders . | . . . . . . . Ally Attacks . | . . . . . . . Total Damage . | . . . . . . . Kills . | . . . . . . . Allies Corrupted . | . . . . . . . Allies Melted . | . . . . . . . Intel | -11 -10 -10 -10 -9 -8 -8 ------- Run | Yrd Mat Min Exi Min Mat Sto Robot Analysis Total . | . . . . . . . Derelict Logs Recovered . | . . . . . . . Drone Launches . | . . . . . . . Drone Recoveries . | . . . . . . . Exploration | -11 -10 -10 -10 -9 -8 -8 ------------- Run | Yrd Mat Min Exi Min Mat Sto Turns Passed 676 | 12 55 45 117 22 252 173 Spaces Moved 822 | 17 89 76 228 43 208 161 Core 748 | 17 89 76 228 43 201 94 Treads . | . . . . . . . Legs . | . . . . . . . Wheels 67 | . . . . . . 67 Hover 7 | . . . . . 7 . Flight . | . . . . . . . Fastest Speed 50 | 50 50 50 50 50 50 50 Average Speed 59 | 50 50 50 50 50 75 66 Slowest Speed 100 | 50 50 50 50 50 100 90 Overloaded Moves . | . . . . . . . Propulsion Burnouts . | . . . . . . . Robots Hopped . | . . . . . . . Cave-ins Triggered . | . . . . . . . Exploration Rate (%) 28 | 3 30 33 60 19 25 30 Regions Visited 6 Branch Regions 4 Pre-discovered Areas 1 | . . . 1 . . . Known Exits Taken . | . . . . . . . Unknown Exits Taken 6 | 1 1 1 1 1 1 . Scrap Searched . | . . . . . . . Spaces Dug . | . . . . . . . Terrain Destroyed . | . . . . . . . Melee . | . . . . . . . Projectile . | . . . . . . . AOE . | . . . . . . . Terrain Rammed . | . . . . . . . Walls Destroyed . | . . . . . . . Machines Disabled . | . . . . . . . Actions | -11 -10 -10 -10 -9 -8 -8 --------- Run | Yrd Mat Min Exi Min Mat Sto Total 957 | 20 98 82 229 43 289 196 Wait 69 | . . . . . 65 4 Move 817 | 16 88 75 227 42 208 161 Hop . | . . . . . . . Pick Up 1 | . . . 1 . . . Fast Attach 7 | . . . 1 . 2 4 Attach . | . . . . . . . Detach . | . . . . . . . Swap . | . . . . . . . Drop 1 | . . . . 1 . . Fire . | . . . . . . . Melee 26 | . . . . . 12 14 Ram 36 | 4 10 7 . . 2 13 Kick . | . . . . . . . Crush . | . . . . . . . Escape Stasis . | . . . . . . . Rewire . | . . . . . . . Trap . | . . . . . . . Miscellaneous . | . . . . . . . Route ------- -11/Scrapyard -10/Materials -10/Mines (discovered 2 exits: [*Mat] / *Exi) -10/Exiles -9/Mines -8/Materials -8/Storage (discovered 1 exit: [*Fac]) History --------- Turn | Location | Event 3 | -11/Scrapyard | Discovered new exit (range 16) 13 | -11/Scrapyard | Entered Materials 33 | -10/Materials | Core integrity fell below 50% 63 | -10/Materials | Discovered new exit (range 11) 68 | -10/Materials | Entered Mines 92 | -10/Mines | Discovered new exit (range 6) 104 | -10/Mines | Core integrity fell below 20% 111 | -10/Mines | Deemed a non-threat by the Exiles lab entrance 111 | -10/Mines | Discovered new exit (range 5) 113 | -10/Mines | Entered Exiles 127 | -10/Exiles | Met 8R-AWN 136 | -10/Exiles | Met EX-HEX 153 | -10/Exiles | Met EX-BIN 160 | -10/Exiles | Aligned with FarCom system 160 | -10/Exiles | Given EX-Vault access code 177 | -10/Exiles | Opened EX-Vault 179 | -10/Exiles | Found Longsword +1 190 | -10/Exiles | Warned to stay clear of 0b10 Research branches 207 | -10/Exiles | Met EX-DEC 209 | -10/Exiles | Learned location of Zion (-6) 224 | -10/Exiles | Discovered new exit (range 14) 230 | -10/Exiles | Left Exiles lab with Longsword +1 230 | -10/Exiles | Entered Mines 247 | -9/Mines | Discovered new exit (range 12) 252 | -9/Mines | Entered Materials 252 | -8/Materials | Evolved 4 slots: Utility x2, Weapon x2 318 | -8/Materials | Build established: Mutant 461 | -8/Materials | Released all parts (3) 498 | -8/Materials | Discovered new exit (range 12) 504 | -8/Materials | Entered Storage 530 | -8/Storage | Released all parts (1) 560 | -8/Storage | Core integrity fell below 50% 586 | -8/Storage | Core integrity fell below 20% 660 | -8/Storage | Discovered new exit (range 12) 677 | -8/Storage | Destroyed by G-50 Soldier with Heavy Laser Last Messages --------------- 00595_ Heat Sink fried. 00595_ Beam Rifle fried. 00595_ Heat Sink fried. 00598_ Acquired Arm. Wheel. 00599_ U-05 Engineer builds a Door. 00600_ Acquired Arm. Wheel. 00612_ Connecting with Door Terminal... 00624_ Y-45 Defender suffers critical hit (Smash). 00633_ Destroyed Heat Sink. 00633_ Destroyed Lgt. Armor Plating. 00633_ Y-45 Defender system corrupted by crushing effect. 00634_ Y-45 Defender system terminally corrupted. 00638_ Acquired 20 matter. 00660_ EXIT=FOUND 00666_ Connecting with Door Terminal... >>Open(Door) Sealed Heavy Doors opened. 00671_ Critical hit (Burn: +37). 00673_ K-01 Serf cleans the Packing Station. 00676_ Connecting with Door Terminal... Map ----- +----------------------------------------------------+ | | | | | | | | | | | | | | | | | | | | | | | | | | | | | | | | | ?????????????????????????????????????????????????? | | ?????????????????????????????????????????????????? | | ?????????????????????????????????????????????????? | | ?????????????????????????????????????????????????? | | ?????????????????????????????????????????????????? | | ???????????????###?????????????????????Y?????????? | | ???????????????#*#?????##"""#????????????????????? | | ???????????????# ##????#T #????????????????????? | | ???????????????# T#?????# #????????????????????? | | ################+########@#######????????????????? | | ?????????? | | < ?????????? | | """ ?????????? | | ?####+##### "R ##############??????????? | | ??????????# """ g #???????????????????????? | | ??????????# g a""" #???????????????????????? | | ??????????# g """ #?###???????????????????? | | ??????????# """" #?# #???????????????????? | | ??????????# """" #?# ##??????????????????? | | ??????????# """" #?# T#????###???????????? | | ??????????# "" k ###+#######T####????????? | | ??????????+ T # "==#????????? | | ??????????# % %+[ ==#????????? | | ??????????# ##+##########% # "==#????????? | | ??????????## ## ??????### ######????????? | | ???????????# ## ?????#"" ##????????????? | | ???????????# ## "?????#"T % "#????????????? | | ???????????# ?# ?"?????#"" T#????????????? | | ???????????# ?# ???????### "#?????????#### | | ??????????? ?# ??????????# !##?????????# | | ??????????? ?# ??????????# =############ | | ??????????# ?# ????????+ %= | | ???????????????##????????# % | | ?????????????????????????# #############+#####/ | +----------------------------------------------------+ Best States ------------- Heat Dissipation 31 Energy Generation 5 Energy Capacity 100 Matter Stores 300 Matter Capacity 300 Sight Range 16 Robot Scan Range 15 Terrain Scan Density 10 Evasion (%) 50 Item Schematics ----------------- None Robot Schematics ------------------ None Fabricated ------------ Nothing Alien Tech Used ----------------- None Achievements -------------- None Challenges ------------ None Game ------ Seed ZhirovCargoDrive Manual? 0 Play Time 00:09:07 Cumulative 26.4 hours Start 2024.08.21 @ 00:24:35 End 2024.08.21 @ 00:31:25 Sessions 1 Manual Loads 0 Difficulty Rogue Special Mode None Game No. 92 Rogue 92 Adventurer 0 Explorer 0 Win Type - Total 0 Types 0/0/0/0/0/0/0/0/0 Lore% 30 Gallery% 26 Achievement% 32 Wizard Run 0 Options --------- Layout 0 ASCII 0 Keyboard 0 Movement Arrows Keybinds 0 Fullscreen 1 Font 24/Terminus Map View 64x52 Zoom Use 0% Tactical HUD 1 Map Filters NONE Filters NONE Steam 1 RUN: 8aa60c9c-f506-4ead-bce2-f32543b53fca